[Event "FIDE Grand Swiss 2023"]
[Site "Villa Marina, Douglas, Isle of Man"]
[Date "2023.10.30"]
[Round "6.42"]
[White "Gupta, Abhijeet"]
[Black "Shevchenko, Kirill"]
[Result "1-0"]
[WhiteElo "2609"]
[BlackElo "2671"]
[EventDate "2023.10.25"]
[ECO "E73"]
[PlyCount "93"]
[BlackFideId "14129574"]
[TimeControl "40/100 + 20/50 + 15 + 30s/move"]
[WhiteFideId "5010608"]

1.d4 {[%clk 01:40:45] [%emt 00:00:14]} 1...Nf6 {[%clk 01:40:54] [%emt 00:00:06]} 
2.c4 {[%clk 01:41:09] [%emt 00:00:07]} 2...g6 {[%clk 01:41:18] [%emt 00:00:06]} 
3.Nc3 {[%clk 01:41:15] [%emt 00:00:24]} 3...Bg7 {[%clk 01:41:42] [%emt
00:00:06]} 4.e4 {[%clk 01:41:31] [%emt 00:00:13]} 4...d6 {[%clk 01:42:08] [%emt
00:00:04]} 5.Be2 {[%clk 01:41:47] [%emt 00:00:14]} 5...O-O {[%clk 01:42:32]
[%emt 00:00:06]} 6.Be3 {[%clk 01:42:11] [%emt 00:00:06]} 6...Na6 {[%clk
01:37:36] [%emt 00:05:27]} 7.h3 {[%clk 01:40:56] [%emt 00:01:45]} 7...c6 {[%clk
01:34:06] [%emt 00:04:00]} 8.Nf3 {[%clk 01:39:59] [%emt 00:01:26]} 8...e5 
{[%clk 01:32:54] [%emt 00:01:43]} 9.d5 {[%clk 01:39:51] [%emt 00:00:37]} 
9...Nh5 {[%clk 01:30:08] [%emt 00:03:16]} 10.O-O {[%clk 01:40:12] [%emt
00:00:10]} 10...Nf4 {[%clk 01:28:32] [%emt 00:02:05]} 11.Re1 {[%clk 01:40:20]
[%emt 00:00:22]} 11...Nxe2+ {[%clk 01:24:33] [%emt 00:04:30]} 12.Qxe2 {[%clk
01:40:41] [%emt 00:00:08]} 12...f5 {[%clk 01:17:17] [%emt 00:07:47]} 13.Bg5 
{[%clk 01:32:57] [%emt 00:08:13]} 13...Qd7 {[%clk 00:53:37] [%emt 00:24:09]} 
14.dxc6 {[%clk 01:13:51] [%emt 00:19:38]} 14...bxc6 {[%clk 00:54:01] [%emt
00:00:06]} 15.Rad1 {[%clk 01:14:04] [%emt 00:00:16]} 15...f4 {[%clk 00:35:31]
[%emt 00:19:01]} 16.Qd2 {[%clk 01:12:54] [%emt 00:01:40]} 16...h6 {[%clk
00:33:36] [%emt 00:02:25]} 17.Bxh6 {[%clk 01:13:05] [%emt 00:00:20]} 17...Bxh6 
{[%clk 00:34:00] [%emt 00:00:05]} 18.Qxd6 {[%clk 01:13:31] [%emt 00:00:03]} 
18...Qxd6 {[%clk 00:19:28] [%emt 00:15:02]} 19.Rxd6 {[%clk 01:13:57] [%emt
00:00:05]} 19...Bg7 {[%clk 00:19:55] [%emt 00:00:03]} 20.Rxc6 {[%clk 01:10:41]
[%emt 00:03:46]} 20...Rf6 {[%clk 00:16:32] [%emt 00:03:52]} 21.Rxf6 {[%clk
00:29:40] [%emt 00:41:31]} 21...Bxf6 {[%clk 00:16:36] [%emt 00:00:26]} 22.Rd1 
{[%clk 00:30:02] [%emt 00:00:09]} 22...Nc7 {[%clk 00:15:53] [%emt 00:01:13]} 
23.b4 {[%clk 00:28:49] [%emt 00:01:44]} 23...Rb8 {[%clk 00:12:54] [%emt
00:03:29]} 24.b5 {[%clk 00:27:09] [%emt 00:02:10]} 24...Be6 {[%clk 00:09:31]
[%emt 00:03:52]} 25.c5 {[%clk 00:25:10] [%emt 00:02:29]} 25...Be7 {[%clk
00:07:04] [%emt 00:02:57]} 26.c6 {[%clk 00:24:53] [%emt 00:00:48]} 26...Bb4 
{[%clk 00:04:25] [%emt 00:03:09]} 27.Nd5 {[%clk 00:24:24] [%emt 00:00:59]} 
27...Bxd5 {[%clk 00:04:46] [%emt 00:00:09]} 28.exd5 {[%clk 00:24:44] [%emt
00:00:10]} 28...e4 {[%clk 00:01:04] [%emt 00:04:12]} 29.d6 {[%clk 00:22:26]
[%emt 00:02:48]} 29...Bxd6 {[%clk 00:01:18] [%emt 00:00:16]} 30.Rxd6 {[%clk
00:22:40] [%emt 00:00:16]} 30...exf3 {[%clk 00:01:45] [%emt 00:00:02]} 31.Rd7 
{[%clk 00:18:39] [%emt 00:04:31]} 31...Nxb5 {[%clk 00:01:03] [%emt 00:01:12]} 
32.a4 {[%clk 00:18:34] [%emt 00:00:34]} 32...Nd6 {[%clk 00:00:37] [%emt
00:00:58]} 33.Rxd6 {[%clk 00:18:45] [%emt 00:00:18]} 33...Rb1+ {[%clk 00:00:55]
[%emt 00:00:11]} 34.Kh2 {[%clk 00:19:12] [%emt 00:00:04]} 34...Kf7 {[%clk
00:00:58] [%emt 00:00:28]} 35.gxf3 {[%clk 00:17:33] [%emt 00:02:09]} 35...Rc1 
{[%clk 00:01:13] [%emt 00:00:15]} 36.h4 {[%clk 00:16:06] [%emt 00:01:57]} 
36...Rc3 {[%clk 00:01:30] [%emt 00:00:13]} 37.Kg2 {[%clk 00:16:16] [%emt
00:00:20]} 37...a6 {[%clk 00:00:49] [%emt 00:01:11]} 38.Rd4 {[%clk 00:13:47]
[%emt 00:02:59]} 38...Rxc6 {[%clk 00:01:04] [%emt 00:00:14]} 39.Rxf4+ {[%clk
00:14:13] [%emt 00:00:03]} 39...Kg7 {[%clk 00:01:00] [%emt 00:00:34]} 40.Kg3 
{[%clk 00:14:20] [%emt 00:00:23]} 40...Rc2 {[%clk 00:00:33] [%emt 00:00:57]} 
41.Rg4 {[%clk 00:14:29] [%emt 00:00:21]} 41...Kh6 {[%clk 00:46:54] [%emt
00:04:09]} 42.Rg5 {[%clk 01:04:38] [%emt 00:00:22]} 42...Rc1 {[%clk 00:45:12]
[%emt 00:02:12]} 43.Ra5 {[%clk 01:04:45] [%emt 00:00:23]} 43...Rc6 {[%clk
00:45:40] [%emt 00:00:03]} 44.f4 {[%clk 01:05:03] [%emt 00:00:12]} 44...Rb6 
{[%clk 00:41:46] [%emt 00:04:24]} 45.Kg4 {[%clk 01:05:03] [%emt 00:00:30]} 
45...Rc6 {[%clk 00:40:03] [%emt 00:02:13]} 46.f5 {[%clk 01:03:44] [%emt
00:01:49]} 46...gxf5+ {[%clk 00:40:12] [%emt 00:00:21]} 47.Rxf5 {[%clk 01:04:06]
[%emt 00:00:08]} 1-0

[Event "FIDE Grand Swiss 2023"]
[Site "Villa Marina, Douglas, Isle of Man"]
[Date "2023.10.30"]
[Round "6.43"]
[White "Volokitin, Andrei"]
[Black "Wagner, Dennis"]
[Result "1/2-1/2"]
[WhiteElo "2664"]
[BlackElo "2589"]
[EventDate "2023.10.25"]
[ECO "C88"]
[PlyCount "70"]
[BlackFideId "24650684"]
[TimeControl "40/100 + 20/50 + 15 + 30s/move"]
[WhiteFideId "14107090"]

1.e4 {[%clk 01:40:57] [%emt 00:00:02]} 1...e5 {[%clk 01:40:53] [%emt 00:00:07]} 
2.Nf3 {[%clk 01:41:22] [%emt 00:00:05]} 2...Nc6 {[%clk 01:41:17] [%emt
00:00:07]} 3.Bb5 {[%clk 01:41:47] [%emt 00:00:05]} 3...a6 {[%clk 01:41:34] [%emt
00:00:12]} 4.Ba4 {[%clk 01:42:13] [%emt 00:00:05]} 4...Nf6 {[%clk 01:41:57]
[%emt 00:00:07]} 5.O-O {[%clk 01:42:37] [%emt 00:00:05]} 5...Be7 {[%clk
01:42:14] [%emt 00:00:13]} 6.Re1 {[%clk 01:42:55] [%emt 00:00:12]} 6...b5 
{[%clk 01:42:38] [%emt 00:00:06]} 7.Bb3 {[%clk 01:43:22] [%emt 00:00:04]} 
7...O-O {[%clk 01:42:57] [%emt 00:00:11]} 8.a4 {[%clk 01:43:43] [%emt 00:00:08]} 
8...b4 {[%clk 01:43:17] [%emt 00:00:10]} 9.d4 {[%clk 01:44:03] [%emt 00:00:10]} 
9...d6 {[%clk 01:43:28] [%emt 00:00:19]} 10.dxe5 {[%clk 01:44:28] [%emt
00:00:06]} 10...Nxe5 {[%clk 01:43:43] [%emt 00:00:15]} 11.Nxe5 {[%clk 01:44:40]
[%emt 00:00:18]} 11...dxe5 {[%clk 01:44:08] [%emt 00:00:05]} 12.Qxd8 {[%clk
01:45:04] [%emt 00:00:06]} 12...Rxd8 {[%clk 01:44:03] [%emt 00:00:36]} 13.Nd2 
{[%clk 01:45:27] [%emt 00:00:06]} 13...Bc5 {[%clk 01:42:24] [%emt 00:02:08]} 
14.Nf3 {[%clk 01:45:51] [%emt 00:00:06]} 14...Ng4 {[%clk 01:42:22] [%emt
00:00:32]} 15.Be3 {[%clk 01:46:17] [%emt 00:00:05]} 15...Bxe3 {[%clk 01:40:19]
[%emt 00:02:33]} 16.fxe3 {[%clk 01:46:45] [%emt 00:00:02]} 16...Rd6 {[%clk
01:39:43] [%emt 00:01:06]} 17.Rad1 {[%clk 01:47:10] [%emt 00:00:05]} 17...Be6 
{[%clk 01:37:22] [%emt 00:02:51]} 18.Rxd6 {[%clk 01:47:34] [%emt 00:00:06]} 
18...cxd6 {[%clk 01:37:46] [%emt 00:00:06]} 19.Rd1 {[%clk 01:48:02] [%emt
00:00:02]} 19...Bxb3 {[%clk 00:59:21] [%emt 00:38:55]} 20.cxb3 {[%clk 01:48:18]
[%emt 00:00:14]} 20...Nf6 {[%clk 00:59:37] [%emt 00:00:13]} 21.Rxd6 {[%clk
01:48:41] [%emt 00:00:08]} 21...Nxe4 {[%clk 00:59:59] [%emt 00:00:08]} 22.Rb6 
{[%clk 01:45:55] [%emt 00:03:16]} 22...a5 {[%clk 00:58:02] [%emt 00:02:26]} 
23.Nxe5 {[%clk 01:45:50] [%emt 00:00:35]} 23...Nc5 {[%clk 00:52:11] [%emt
00:06:21]} 24.Nf3 {[%clk 01:42:19] [%emt 00:04:02]} 24...Nxb3 {[%clk 00:50:43]
[%emt 00:01:58]} 25.Rc6 {[%clk 01:42:33] [%emt 00:00:16]} 25...Rd8 {[%clk
00:36:49] [%emt 00:14:23]} 26.Nd4 {[%clk 01:39:54] [%emt 00:03:09]} 26...Nxd4 
{[%clk 00:36:03] [%emt 00:01:17]} 27.exd4 {[%clk 01:40:23] [%emt 00:00:02]} 
27...f5 {[%clk 00:29:31] [%emt 00:07:01]} 28.Rc4 {[%clk 01:39:15] [%emt
00:01:38]} 28...Re8 {[%clk 00:20:26] [%emt 00:09:34]} 29.Kf2 {[%clk 01:05:32]
[%emt 00:34:13]} 29...Re4 {[%clk 00:20:52] [%emt 00:00:04]} 30.Kf3 {[%clk
00:58:04] [%emt 00:07:58]} 30...g6 {[%clk 00:19:57] [%emt 00:01:25]} 31.Rc8+ 
{[%clk 00:40:38] [%emt 00:17:56]} 31...Kf7 {[%clk 00:20:21] [%emt 00:00:06]} 
32.Rd8 {[%clk 00:41:03] [%emt 00:00:06]} 32...b3 {[%clk 00:16:02] [%emt
00:04:49]} 33.Rd5 {[%clk 00:38:20] [%emt 00:03:13]} 33...Ke6 {[%clk 00:15:55]
[%emt 00:00:36]} 34.Rxa5 {[%clk 00:36:54] [%emt 00:01:56]} 34...Rxd4 {[%clk
00:16:21] [%emt 00:00:04]} 35.Rb5 {[%clk 00:15:20] [%emt 00:22:04]} 35...Rxa4 
{[%clk 00:16:44] [%emt 00:00:07]} 1/2-1/2

[Event "FIDE Grand Swiss 2023"]
[Site "Villa Marina, Douglas, Isle of Man"]
[Date "2023.10.30"]
[Round "6.44"]
[White "Akobian, Varuzhan"]
[Black "Ivanchuk, Vasyl"]
[Result "1/2-1/2"]
[WhiteElo "2582"]
[BlackElo "2653"]
[EventDate "2023.10.25"]
[ECO "D92"]
[PlyCount "55"]
[BlackFideId "14100010"]
[TimeControl "40/100 + 20/50 + 15 + 30s/move"]
[WhiteFideId "13300580"]

1.d4 {[%clk 01:40:55] [%emt 00:00:03]} 1...Nf6 {[%clk 01:40:49] [%emt 00:00:12]} 
2.c4 {[%clk 01:41:16] [%emt 00:00:08]} 2...g6 {[%clk 01:41:15] [%emt 00:00:05]} 
3.Nc3 {[%clk 01:41:09] [%emt 00:00:37]} 3...d5 {[%clk 01:41:40] [%emt 00:00:04]} 
4.Bf4 {[%clk 01:39:59] [%emt 00:01:40]} 4...Bg7 {[%clk 01:42:06] [%emt
00:00:05]} 5.Nf3 {[%clk 01:39:28] [%emt 00:01:01]} 5...O-O {[%clk 01:42:18]
[%emt 00:00:19]} 6.Rc1 {[%clk 01:39:02] [%emt 00:00:55]} 6...dxc4 {[%clk
01:41:48] [%emt 00:01:01]} 7.e3 {[%clk 01:38:25] [%emt 00:01:06]} 7...c5 {[%clk
01:36:02] [%emt 00:06:16]} 8.dxc5 {[%clk 01:36:42] [%emt 00:02:13]} 8...Qa5 
{[%clk 01:35:17] [%emt 00:01:15]} 9.Bxc4 {[%clk 01:30:56] [%emt 00:06:16]} 
9...Qxc5 {[%clk 01:35:41] [%emt 00:00:07]} 10.Qe2 {[%clk 01:27:51] [%emt
00:03:34]} 10...Bg4 {[%clk 01:08:32] [%emt 00:27:40]} 11.O-O {[%clk 01:24:38]
[%emt 00:03:42]} 11...Nc6 {[%clk 01:01:36] [%emt 00:07:26]} 12.Bb3 {[%clk
01:16:09] [%emt 00:09:00]} 12...Qh5 {[%clk 00:47:42] [%emt 00:14:24]} 13.h3 
{[%clk 01:13:17] [%emt 00:03:21]} 13...Bxf3 {[%clk 00:48:06] [%emt 00:00:07]} 
14.Qxf3 {[%clk 01:13:38] [%emt 00:00:07]} 14...Qxf3 {[%clk 00:48:33] [%emt
00:00:04]} 15.gxf3 {[%clk 01:13:58] [%emt 00:00:09]} 15...Na5 {[%clk 00:39:53]
[%emt 00:09:12]} 16.Bd1 {[%clk 00:59:09] [%emt 00:15:19]} 16...Rfc8 {[%clk
00:32:15] [%emt 00:08:07]} 17.Be2 {[%clk 00:58:16] [%emt 00:01:23]} 17...Nh5 
{[%clk 00:32:41] [%emt 00:00:05]} 18.Bh2 {[%clk 00:55:34] [%emt 00:03:11]} 
18...Bxc3 {[%clk 00:32:28] [%emt 00:00:43]} 19.Rxc3 {[%clk 00:52:21] [%emt
00:03:43]} 19...Rxc3 {[%clk 00:32:44] [%emt 00:00:15]} 20.bxc3 {[%clk 00:52:45]
[%emt 00:00:05]} 20...Rc8 {[%clk 00:28:42] [%emt 00:04:32]} 21.Rd1 {[%clk
00:51:51] [%emt 00:01:24]} 21...Nf6 {[%clk 00:29:08] [%emt 00:00:04]} 22.Be5 
{[%clk 00:50:55] [%emt 00:01:26]} 22...Kf8 {[%clk 00:28:34] [%emt 00:01:04]} 
23.Bxf6 {[%clk 00:46:10] [%emt 00:05:15]} 23...exf6 {[%clk 00:28:57] [%emt
00:00:08]} 24.Rd5 {[%clk 00:44:53] [%emt 00:01:47]} 24...Nc6 {[%clk 00:19:48]
[%emt 00:09:38]} 25.Rd7 {[%clk 00:44:36] [%emt 00:00:48]} 25...Na5 {[%clk
00:20:13] [%emt 00:00:05]} 26.Rd5 {[%clk 00:43:20] [%emt 00:01:45]} 26...Nc6 
{[%clk 00:20:32] [%emt 00:00:12]} 27.Rd7 {[%clk 00:43:32] [%emt 00:00:18]} 
27...Na5 {[%clk 00:20:52] [%emt 00:00:11]} 28.Rd5 {[%clk 00:43:07] [%emt
00:00:54]} 1/2-1/2

[Event "FIDE Grand Swiss 2023"]
[Site "Villa Marina, Douglas, Isle of Man"]
[Date "2023.10.30"]
[Round "6.45"]
[White "Santos Latasa, Jaime"]
[Black "Dardha, Daniel"]
[Result "1/2-1/2"]
[WhiteElo "2650"]
[BlackElo "2580"]
[EventDate "2023.10.25"]
[ECO "A13"]
[PlyCount "60"]
[BlackFideId "240990"]
[TimeControl "40/100 + 20/50 + 15 + 30s/move"]
[WhiteFideId "2293307"]

1.Nf3 {[%clk 01:40:57] [%emt 00:00:03]} 1...d5 {[%clk 01:40:31] [%emt 00:00:29]} 
2.e3 {[%clk 01:41:09] [%emt 00:00:18]} 2...Nf6 {[%clk 01:40:50] [%emt 00:00:11]} 
3.c4 {[%clk 01:41:33] [%emt 00:00:06]} 3...e6 {[%clk 01:41:03] [%emt 00:00:17]} 
4.b3 {[%clk 01:41:27] [%emt 00:00:37]} 4...c5 {[%clk 01:38:08] [%emt 00:03:25]} 
5.Bb2 {[%clk 01:41:20] [%emt 00:00:37]} 5...Nc6 {[%clk 01:38:29] [%emt
00:00:08]} 6.cxd5 {[%clk 01:41:35] [%emt 00:00:15]} 6...exd5 {[%clk 01:38:54]
[%emt 00:00:05]} 7.Bb5 {[%clk 01:41:58] [%emt 00:00:07]} 7...Bd6 {[%clk
01:39:18] [%emt 00:00:06]} 8.O-O {[%clk 01:42:11] [%emt 00:00:17]} 8...O-O 
{[%clk 01:39:38] [%emt 00:00:09]} 9.d4 {[%clk 01:42:31] [%emt 00:00:11]} 
9...cxd4 {[%clk 01:39:53] [%emt 00:00:15]} 10.Nxd4 {[%clk 01:42:51] [%emt
00:00:11]} 10...Bc7 {[%clk 01:39:58] [%emt 00:00:25]} 11.Nf3 {[%clk 01:43:09]
[%emt 00:00:12]} 11...Bg4 {[%clk 01:39:24] [%emt 00:01:03]} 12.Nbd2 {[%clk
01:43:15] [%emt 00:00:24]} 12...Ne4 {[%clk 01:36:46] [%emt 00:03:08]} 13.Nxe4 
{[%clk 01:39:54] [%emt 00:03:51]} 13...dxe4 {[%clk 01:37:11] [%emt 00:00:06]} 
14.Qxd8 {[%clk 01:40:19] [%emt 00:00:05]} 14...Rfxd8 {[%clk 01:34:42] [%emt
00:02:59]} 15.Bxc6 {[%clk 01:39:21] [%emt 00:01:27]} 15...bxc6 {[%emt 00:00:44]} 
16.Ne5 {[%clk 01:39:13]} 16...Bxe5 {[%clk 01:34:53] [%emt 00:00:43]} 17.Bxe5 
{[%clk 01:39:11] [%emt 00:00:33]} 17...Rd5 {[%clk 01:33:26] [%emt 00:01:57]} 
18.Bg3 {[%clk 01:36:45] [%emt 00:02:55]} 18...Rad8 {[%clk 01:25:42] [%emt
00:08:14]} 19.h3 {[%clk 01:34:45] [%emt 00:02:31]} 19...Bd1 {[%clk 01:18:39]
[%emt 00:07:33]} 20.Rc1 {[%clk 01:33:35] [%emt 00:01:40]} 20...h6 {[%clk
01:13:16] [%emt 00:05:53]} 21.Rxc6 {[%clk 01:32:46] [%emt 00:01:19]} 21...Rd2 
{[%clk 01:13:05] [%emt 00:00:40]} 22.Rc1 {[%clk 01:30:30] [%emt 00:02:47]} 
22...Be2 {[%clk 01:12:09] [%emt 00:01:26]} 23.Rfe1 {[%clk 01:30:54] [%emt
00:00:05]} 23...Rxa2 {[%clk 01:12:22] [%emt 00:00:18]} 24.Ra1 {[%clk 01:31:02]
[%emt 00:00:22]} 24...Rxa1 {[%clk 01:12:43] [%emt 00:00:09]} 25.Rxa1 {[%clk
01:31:29] [%emt 00:00:04]} 25...Rd1+ {[%clk 01:13:06] [%emt 00:00:06]} 26.Rxd1 
{[%clk 01:31:54] [%emt 00:00:05]} 26...Bxd1 {[%clk 01:13:32] [%emt 00:00:04]} 
27.b4 {[%clk 01:32:19] [%emt 00:00:05]} 27...Be2 {[%clk 01:13:57] [%emt
00:00:04]} 28.Be5 {[%clk 01:32:31] [%emt 00:00:18]} 28...f6 {[%clk 01:14:13]
[%emt 00:00:14]} 29.Bd4 {[%clk 01:32:56] [%emt 00:00:05]} 29...a6 {[%clk
01:14:40] [%emt 00:00:04]} 30.Kh2 {[%clk 01:33:20] [%emt 00:00:06]} 30...Kf7 
{[%clk 01:15:04] [%emt 00:00:06]} 1/2-1/2

[Event "FIDE Grand Swiss 2023"]
[Site "Villa Marina, Douglas, Isle of Man"]
[Date "2023.10.30"]
[Round "6.46"]
[White "Svane, Rasmus"]
[Black "Amar, Elham"]
[Result "1-0"]
[WhiteElo "2646"]
[BlackElo "2568"]
[EventDate "2023.10.25"]
[ECO "E11"]
[PlyCount "89"]
[BlackFideId "1533533"]
[TimeControl "40/100 + 20/50 + 15 + 30s/move"]
[WhiteFideId "4657101"]

1.d4 {[%clk 01:40:55] [%emt 00:00:04]} 1...Nf6 {[%clk 01:40:54] [%emt 00:00:08]} 
2.c4 {[%clk 01:41:10] [%emt 00:00:15]} 2...e6 {[%clk 01:41:17] [%emt 00:00:06]} 
3.Nf3 {[%clk 01:41:02] [%emt 00:00:38]} 3...Bb4+ {[%clk 01:40:38] [%emt
00:01:09]} 4.Bd2 {[%clk 01:39:33] [%emt 00:02:00]} 4...Qe7 {[%clk 01:40:48]
[%emt 00:00:19]} 5.g3 {[%clk 01:38:49] [%emt 00:01:14]} 5...Bxd2+ {[%clk
01:41:07] [%emt 00:00:11]} 6.Qxd2 {[%clk 01:38:05] [%emt 00:01:14]} 6...Nc6 
{[%clk 01:41:29] [%emt 00:00:08]} 7.b3 {[%clk 01:31:04] [%emt 00:07:31]} 7...a5 
{[%clk 01:38:11] [%emt 00:03:48]} 8.Nc3 {[%clk 01:30:59] [%emt 00:00:35]} 
8...a4 {[%clk 01:37:58] [%emt 00:00:44]} 9.Rb1 {[%clk 01:26:45] [%emt 00:04:43]} 
9...axb3 {[%clk 01:23:48] [%emt 00:14:41]} 10.axb3 {[%clk 01:26:54] [%emt
00:00:20]} 10...d5 {[%clk 01:06:52] [%emt 00:17:26]} 11.Bg2 {[%clk 01:23:51]
[%emt 00:03:33]} 11...O-O {[%clk 00:52:08] [%emt 00:15:14]} 12.O-O {[%clk
01:18:27] [%emt 00:05:54]} 12...Rd8 {[%clk 00:48:06] [%emt 00:04:31]} 13.Qf4 
{[%clk 01:04:59] [%emt 00:13:59]} 13...Nb4 {[%clk 00:23:40] [%emt 00:24:57]} 
14.Rfc1 {[%clk 00:39:57] [%emt 00:25:31]} 14...Na2 {[%clk 00:19:52] [%emt
00:04:18]} 15.Nxa2 {[%clk 00:38:58] [%emt 00:01:30]} 15...Rxa2 {[%clk 00:20:18]
[%emt 00:00:04]} 16.Bf1 {[%clk 00:30:11] [%emt 00:09:16]} 16...dxc4 {[%clk
00:17:10] [%emt 00:03:39]} 17.Rxc4 {[%clk 00:24:54] [%emt 00:05:47]} 17...c6 
{[%clk 00:13:51] [%emt 00:03:47]} 18.Qc1 {[%clk 00:20:05] [%emt 00:05:21]} 
18...Bd7 {[%clk 00:12:55] [%emt 00:01:24]} 19.Ra4 {[%clk 00:18:30] [%emt
00:02:34]} 19...Ra8 {[%clk 00:12:43] [%emt 00:00:45]} 20.Rxa2 {[%clk 00:18:27]
[%emt 00:00:33]} 20...Rxa2 {[%clk 00:13:10] [%emt 00:00:05]} 21.Ra1 {[%clk
00:18:48] [%emt 00:00:08]} 21...Rxa1 {[%clk 00:12:55] [%emt 00:00:46]} 22.Qxa1 
{[%clk 00:19:16]} 22...Qb4 {[%clk 00:09:23] [%emt 00:04:01]} 23.Qa8+ {[%clk
00:12:23] [%emt 00:07:24]} 23...Be8 {[%clk 00:09:49] [%emt 00:00:04]} 24.e4 
{[%clk 00:10:15] [%emt 00:02:38]} 24...Kf8 {[%clk 00:09:13] [%emt 00:01:06]} 
25.e5 {[%clk 00:10:39] [%emt 00:00:05]} 25...Nd7 {[%clk 00:06:43] [%emt
00:02:59]} 26.Bc4 {[%clk 00:09:11] [%emt 00:01:59]} 26...h6 {[%clk 00:04:15]
[%emt 00:02:59]} 27.Kg2 {[%clk 00:09:16] [%emt 00:00:25]} 27...b5 {[%clk
00:03:09] [%emt 00:01:37]} 28.Bd3 {[%clk 00:07:33] [%emt 00:02:12]} 28...Qxb3 
{[%clk 00:01:43] [%emt 00:01:56]} 29.Be4 {[%clk 00:07:35] [%emt 00:00:28]} 
29...Nb6 {[%clk 00:02:00] [%emt 00:00:13]} 30.Qd8 {[%clk 00:05:44] [%emt
00:02:21]} 30...Nd5 {[%clk 00:02:27] [%emt 00:00:04]} 31.Qd6+ {[%clk 00:06:09]
[%emt 00:00:05]} 31...Ne7 {[%clk 00:02:26] [%emt 00:00:30]} 32.Ne1 {[%clk
00:06:06] [%emt 00:00:34]} 32...Qa4 {[%clk 00:00:38] [%emt 00:02:19]} 33.Nd3 
{[%clk 00:06:32] [%emt 00:00:04]} 33...Qa7 {[%clk 00:00:36] [%emt 00:00:32]} 
34.Nc5 {[%clk 00:06:18] [%emt 00:00:43]} 34...Qa8 {[%clk 00:00:33] [%emt
00:00:34]} 35.g4 {[%clk 00:03:14] [%emt 00:03:34]} 35...g5 {[%clk 00:00:33]
[%emt 00:00:30]} 36.Bf5 {[%clk 00:02:20] [%emt 00:01:23]} 36...exf5 {[%clk
00:00:36] [%emt 00:00:27]} 37.gxf5 {[%clk 00:02:24] [%emt 00:00:26]} 37...Qa2 
{[%clk 00:00:32] [%emt 00:00:35]} 38.Qxh6+ {[%clk 00:02:10] [%emt 00:00:44]} 
38...Kg8 {[%clk 00:01:01]} 39.Ne4 {[%clk 00:00:43] [%emt 00:01:57]} 39...Qd5 
{[%clk 00:01:27] [%emt 00:00:03]} 40.f3 {[%clk 00:00:49] [%emt 00:00:24]} 
40...Qa2+ {[%clk 00:01:51] [%emt 00:00:07]} 41.Kh3 {[%clk 00:49:29] [%emt
00:01:49]} 41...g4+ {[%clk 00:52:10] [%emt 00:00:11]} 42.fxg4 {[%clk 00:47:30]
[%emt 00:02:30]} 42...Nd5 {[%clk 00:51:55] [%emt 00:00:46]} 43.f6 {[%clk
00:40:14] [%emt 00:07:46]} 43...Qa3+ {[%clk 00:52:20] [%emt 00:00:04]} 44.Kh4 
{[%clk 00:40:30] [%emt 00:00:14]} 44...Qf8 {[%clk 00:52:48] [%emt 00:00:03]} 
45.Qg5+ {[%clk 00:40:34] [%emt 00:00:26]} 1-0